Cogmind - Beta 10.2 @@@ ROGUE MODE // 2021.02.09 @ 17:34:18 Player: Fqbits Result: Destroyed by S-10 Pest with Light Assault Rifle Performance ------------- Evolutions (0) 0 Regions Visited (1) 200 Robots Destroyed (2) 10 Value Destroyed (91) 91 Prototype IDs (0) 0 Alien Tech Used (0) 0 Bonus (0) 0 TOTAL SCORE: 301 Bonus ------- None Cogmind --------- Core Integrity 0/250 Matter 277/300 Energy 74/250 System Corruption 0% Temperature Cool (0) Movement Core (100) Ox1 Location -10/Materials Parts ------- > --- POWER (1) -------- Ion Engine > --- PROPULSION (2) --- (None) > --- UTILITY (2) ------ (None) > --- WEAPON (2) ------- Light Assault Rifle > --- INVENTORY (4) ---- (None) Peak State ------------ > --- POWER ------------ Ion Engine > --- PROPULSION ------- Aluminum Leg Aluminum Leg > --- UTILITY ---------- (None) > --- WEAPON ----------- EM Pulse Gun Medium Laser > --- INVENTORY -------- Ion Engine EM Pulse Gun [Rating: 5] Favorites ----------- Power Ion Engine Engine Ion Engine Propulsion Aluminum Leg Leg Aluminum Leg Utility None Weapon Medium Laser Energy Gun Medium Laser Ballistic Gun Assault Rifle Build | -11 -10 ------- Run | Scr Mat Slots Evolved . | . . Power . | . . Propulsion . | . . Utility . | . . Weapon . | . . Parts Attached 10 | 4 6 Power 2 | 1 1 Engine 2 | 1 1 Core . | . . Reactor . | . . Propulsion 2 | 2 . Treads . | . . Leg 2 | 2 . Wheel . | . . Hover . | . . Flight . | . . Utility . | . . Device . | . . Storage . | . . Processor . | . . Hackware . | . . Protection . | . . Artifact . | . . Weapon 6 | 1 5 Energy Gun 3 | 1 2 Energy Cannon . | . . Ballistic Gun 3 | . 3 Ballistic Cannon . | . . Launcher . | . . Special Weapon . | . . Impact Weapon . | . . Slashing Weapon . | . . Piercing Weapon . | . . Special Melee Weapon . | . . Unidentified Prototypes . | . . Parts Lost 8 | . 8 Power 1 | . 1 Propulsion 2 | . 2 Utility . | . . Weapon 5 | . 5 Highest Loss Streak 6 | . 6 Average Slot Usage (%) 50 | . 50 Engine 11 | . 11 Leg 23 | . 23 Energy Gun 12 | . 12 Ballistic Gun 3 | . 3 Naked Turns 3 | . 3 Heaviest Build 7 | 7 7 Greatest Support 20 | 20 20 Greatest Overweight (x) 2 | 2 1 Average Overweight (x) . | . . Largest Inventory Capacity 4 | 4 4 Average Capacity 4 | 4 4 Most Carried 3 | 3 3 Average Carried 2 | 2 2 Final Capacity 4 | 4 4 Final Carried 3 | 3 . Class Distribution -------------------- 100% | Mutant Dominant Class ---------------- Mutant | -10/Materials Resources | -11 -10 ----------- Run | Scr Mat Matter Collected 242 | 188 54 Remotely . | . . Salvage Created 97 | . 97 Parts 7 | . 7 Haulers Intercepted . | . . Recyclers Shooed . | . . Parts Field Recycled . | . . Retrieved Matter . | . . Parts Self-Destructed . | . . Prevented . | . . Kills | -11 -10 ------- Run | Scr Mat Combat Hostiles Destroyed 2 | . 2 Guns 2 | . 2 Classes Destroyed 1 | . 1 Grunt 2 | . 2 Best Kill Streak 1 | . 1 Combat Bots Only 1 | . 1 Max Kills in Single Turn 1 | . 1 Gunslinging . | . . Exploded . | . . Melee . | . . Uniques/NPCs Destroyed . | . . Combat | -11 -10 -------- Run | Scr Mat Damage Taken 874 | . 874 Core 256 | . 256 Absorbed by Shields . | . . Core Remaining (%) 100 | 100 . Volleys Fired 21 | . 21 Largest 2 | . 2 Hottest 90 | . 90 Shots Fired 30 | . 30 Gun 30 | . 30 Cannon . | . . Launcher . | . . Special . | . . Kinetic 7 | . 7 Thermal 10 | . 10 Explosive . | . . Electromagnetic 13 | . 13 Robot Hit Streak 6 | . 6 Robot Miss Streak 2 | . 2 Penetration Max . | . . Secondary Targets 1 | . 1 Max Gunslinging Chain 1 | . 1 Shots Hit Robots 21 | . 21 Core Hits 9 | . 9 Critical Hits . | . . Critical Kills . | . . Critical Parts Destroyed . | . . Melee Attacks . | . . Impact . | . . Slashing . | . . Piercing . | . . Sneak Attacks . | . . Combat Hostiles . | . . Follow-up Attacks . | . . Damage Inflicted 341 | . 341 Guns 252 | . 252 Cannons . | . . Explosions 85 | . 85 Melee . | . . Ramming 4 | . 4 Kinetic 70 | . 70 Thermal 160 | . 160 Explosive . | . . Electromagnetic 107 | . 107 Impact . | . . Slashing . | . . Piercing . | . . Highest Corruption . | . . Average Corruption . | . . Corruption Purged . | . . Overload Shots . | . . Overflow Damage 15 | . 15 Projectiles . | . . Explosions 15 | . 15 Melee . | . . Knockbacks . | . . Impact . | . . Kinetic . | . . Secondary . | . . Self-Inflicted Damage 26 | . 26 Shots 1 | . 1 Rammed 3 | . 3 Targets Rammed 3 | . 3 Kicked . | . . Crushed . | . . Highest Temperature 398 | . 398 Average Temperature 192 | . 192 Received Heat Transfer 408 | . 408 Effects 3 | . 3 Energy Bleed 1 | . 1 Interference 2 | . 2 Siege Activations . | . . Robots Corrupted . | . . Combat Hostiles . | . . Parts Fried . | . . Impact Corruptions . | . . Robots Melted . | . . Combat Hostiles . | . . Parts Melted . | . . Heat Transferred 372 | . 372 Parts Sabotaged . | . . Parts Stolen . | . . Parts Stripped . | . . Power Chain Reactions 1 | . 1 Missiles Intercepted . | . . Alert | -11 -10 ------- Run | Scr Mat Peak Influence 133 | . 133 Initial . | . . Average 37 | . 44 Maximum Alert Level . | . . Low Security (%) 100 | 100 100 Level 1 . | . . Level 2 . | . . Level 3 . | . . Level 4 . | . . Level 5 . | . . High Security . | . . Max Security . | . . Squads Dispatched 1 | . 1 Investigation . | . . Extermination . | . . Reinforcement 1 | . 1 Assault . | . . Garrison . | . . Intercept . | . . Construction Impeded . | . . Haulers Reinforced . | . . Stealth | -11 -10 --------- Run | Scr Mat Distress Signals 2 | . 2 Communications Jammed . | . . Distress Signals . | . . Times Spotted 15 | . 15 Peak Tracking Total 7 | . 7 Tactical Retreats 3 | . 3 Traps | -11 -10 ------- Run | Scr Mat Traps Triggered . | . . Indirectly . | . . Trap Hack Attempts . | . . Triggered . | . . Disarmed . | . . Reprogrammed . | . . Reused . | . . Traps Extracted . | . . Installed . | . . Triggered . | . . Machines | -11 -10 ---------- Run | Scr Mat Machines Disabled 1 | . 1 Max in Single Turn 1 | . 1 Machines Sabotaged . | . . Garrisons Compromised . | . . Overloaded Fab Kills . | . . Fab Network Shutdowns . | . . Hacking | -11 -10 --------- Run | Scr Mat Machines Accessed 2 | . 2 Terminals 2 | . 2 Fabricators . | . . Repair Stations . | . . Recycling Units . | . . Scanalyzers . | . . Garrison Access . | . . Total Hacks 7 | . 7 Successful 6 | . 6 Failed 1 | . 1 Catastrophic . | . . Database Lockouts . | . . Manual . | . . Terminals 7 | . 7 Fabricators . | . . Repair Stations . | . . Recycling Units . | . . Scanalyzers . | . . Garrison Access . | . . Terminal Hacks 6 | . 6 Robot Analysis 2 | . 2 Branch Access Points 1 | . 1 Hauler Manifests 1 | . 1 Registered Components 1 | . 1 Zone Layout 1 | . 1 Fabricator Hacks . | . . Repair Station Hacks . | . . Recycling Unit Hacks . | . . Scanalyzer . | . . Garrison Access Hacks . | . . Unauthorized Hacks . | . . Terminals . | . . Fabricators . | . . Repair Stations . | . . Recycling Units . | . . Scanalyzers . | . . Garrison Access . | . . Data Cores Recovered . | . . Used . | . . Hacking Detections 2 | . 2 Full Trace Events . | . . Feedback Events . | . . Feedback Blocked . | . . Robot Schematics Acquired . | . . Robots Built . | . . Matter . | . . Time . | . . Total Robot Build Rating . | . . Part Schematics Acquired . | . . Parts Built . | . . Matter . | . . Time . | . . Total Part Build Rating . | . . Parts Repaired . | . . Time . | . . Parts Recycled . | . . Recycled Matter . | . . Retrieved Matter . | . . Retrieved Components . | . . Parts Scanalyzed . | . . Part Schematics Acquired . | . . Parts Damaged . | . . Bothacking | -11 -10 ------------ Run | Scr Mat Used RIF Installer . | . . Robots Hacked . | . . Non-combat . | . . Combat . | . . Robot Hacks Applied . | . . Relay Couplers Released . | . . Robots Rewired . | . . Allies Hacked . | . . Hacks Repelled . | . . Allies | -11 -10 -------- Run | Scr Mat Total Allies . | . . Largest Group . | . . Highest-Rated Group . | . . Highest-Rated Ally . | . . Total Orders . | . . Ally Attacks . | . . Total Damage . | . . Kills . | . . Allies Corrupted . | . . Allies Melted . | . . Intel | -11 -10 ------- Run | Scr Mat Robot Analysis Total 2 | . 2 Derelict Logs Recovered . | . . Drone Launches . | . . Drone Recoveries . | . . Exploration | -11 -10 ------------- Run | Scr Mat Turns Passed 313 | 51 262 Spaces Moved 213 | 40 173 Core 45 | 15 30 Treads . | . . Legs 168 | 25 143 Wheels . | . . Hover . | . . Flight . | . . Fastest Speed 50 | 50 50 Average Speed 112 | 101 115 Slowest Speed 150 | 150 120 Overloaded Moves . | . . Propulsion Burnouts . | . . Robots Hopped . | . . Cave-ins Triggered . | . . Exploration Rate (%) 21 | 2 41 Regions Visited 1 Branch Regions . Pre-discovered Areas . | . . Known Exits Taken . | . . Unknown Exits Taken 1 | 1 . Scrap Searched . | . . Spaces Dug . | . . Terrain Destroyed 3 | . 3 Melee . | . . Projectile . | . . AOE 3 | . 3 Terrain Rammed . | . . Walls Destroyed . | . . Machines Disabled . | . . Actions | -11 -10 --------- Run | Scr Mat Total 256 | 50 206 Wait . | . . Move 212 | 39 173 Hop . | . . Pick Up 10 | 7 3 Fast Attach . | . . Attach 10 | 4 6 Detach . | . . Swap . | . . Drop . | . . Fire 21 | . 21 Melee . | . . Ram . | . . Kick 3 | . 3 Crush . | . . Escape Stasis . | . . Rewire . | . . Trap . | . . Miscellaneous . | . . Route ------- -11/Scrapyard -10/Materials (discovered 2 exits: *Min x2) History --------- Turn | Location | Event 3 | -11/Scrapyard | Discovered new exit (range 15) 52 | -11/Scrapyard | Entered Materials 152 | -10/Materials | Identified exit to Mines 274 | -10/Materials | Core integrity fell below 50% 294 | -10/Materials | Core integrity fell below 20% 302 | -10/Materials | Lost 6 parts (1p2n3w) 314 | -10/Materials | Destroyed by S-10 Pest with Light Assault Rifle Last Messages --------------- U-05 Engineer lays Concrete. R-06 Scavenger collects Heat Sink. Acquired Assault Rifle. U-05 Engineer lays Concrete. Aluminum Leg destroyed. U-05 Engineer lays Concrete. Acquired Assault Rifle. U-05 Engineer lays Concrete. Overheating: Energy bleed (-18). U-05 Engineer lays Concrete. Overheating: System interference. Assault Rifle temporarily disabled. U-05 Engineer builds a Wall. G-34 Mercenary misfires. Acquired 54 matter. G-34 Mercenary misfires. G-47 Trooper destroyed. Critical hit. Assault Rifle destroyed. Acquired Lgt. Assault Rifle. Map ----- +----------------------------------------------------+ | | | | | | | | | ?????????????????????????????????????????????????? | | ?????????????????????????????????????????????????? | | ?????????????????????????????????????????????????? | | ?????????????????????????????????????????????????? | | ?????????????????????????????????????????????????? | | ?????????????????????????????????????????????????? | | ?????????????????????????????????????????????????? | | ????????????????????????????????? ?????????????? | | ????????????????????????????????? #????????????? | | ????????????????????????????????? ???????>????? | | ????????????????????????????????# #????????????? | | ???????????????????????????????? #????????????? | | ????????????????????????????????# #????????????? | | ????????????????????????????????# #????????????? | | ????????????????????????????????# ##???????????? | | ???????????########?????????????# ????????????? | | ???????????# #?????######### #????????????? | | ?????####### """ #?????# !! # #????????????? | | ????##!!!!## """ #?????# ! # #???????? ??? | | ????#! !# """ #?????# s # #### ?? | | ????#! !# #?????# ss#* k/ ?????? | | ?#### # #?????#@ gg%k #????????????? | | ?# ###+#####??###########g #????????????? | | ?# ^ #"T #### ##### #????????????? | | ?# ^ #?????????? ?? | | ?# ####### ? | | ?# T ?? | | ?# ########## %## ##### | | ?# #????????# /= ####+#####?# | | ?# #????????# / # #?# | | ?# #????????# / #?# ? | | ?# #????????# # = #?# ? | | ?# #????????########## = #?# #######+####?? | | ?#+#########?????????# =% #?# #????????????? | | ?# #?????????# #? "????????????? | | ?# ! [ !#####?????# #? ????????????? | | ?#"" # #?????# #? !???????????? | | ?#"" """ + #?????# /#? > "???????????? | | ?#"T """ # #?????####" "#### !"??????????? | | ?#"" """ # #????????#"R"#??# ???????????? | | ?#"" # #????????#"""#??# """??????????? | | ?# # #????????#####??## ##???????????? | | ?####+###### #?????????# ?????? #????????????? | | ????# #?????????# ?????? ?????????????? | | ????# #?????????# ??????????????????????? | | ????# #?????????# ??????????????????????? | +----------------------------------------------------+ Best States ------------- Heat Dissipation 25 Energy Generation 10 Energy Capacity 250 Matter Stores 300 Matter Capacity 300 Sight Range 16 Terrain Scan Density 10 Evasion (%) 50 Item Schematics ----------------- None Robot Schematics ------------------ None Fabricated ------------ Nothing Alien Tech Used ----------------- None Achievements -------------- None Challenges ------------ None Game ------ Seed PointThrusterKatana Manual? 0 Play Time 00:08:19 Cumulative 10.7 hours Start 2021.02.09 @ 17:29:26 End 2021.02.09 @ 17:34:18 Sessions 1 Manual Loads 0 Difficulty Rogue Special Mode None Game No. 19 Rogue 19 Adventurer 0 Explorer 0 Win Type - Total 0 Types 0/0/0/0/0/0/0/0/0 Lore% 15 Gallery% 20 Achievement% 16 Wizard Run 0 Options --------- ASCII 0 Keyboard 0 Movement Numpad Keybinds 0 Fullscreen 2 Font 24/Smallcaps Map View 76x50 Tactical HUD 0 Map Filters NONE Filters NONE Steam 1 RUN: a7cc1518-0263-42e7-ba9f-161b3934fa75